Cogmind - Beta 17 @@@ ROGUE MODE // 2026.08.18 @ 13:38:39 Player: 4R-ZE3 Result: Self-destructed Performance ------------- Evolutions (8) 4000 Regions Visited (30) 6000 Robots Destroyed (286) 1430 Value Destroyed (13768) 13768 Prototype IDs (44) 880 Alien Tech Used (2) 400 Bonus (1406) 1406 TOTAL SCORE: 27884 Bonus ------- High Alert Combat Kills 40 Met Data Miner 300 Met Imprinter 300 Met Zhirov 300 Scanned by Researcher 500 Friendly Fire -34 Cogmind --------- Core Integrity 939/1450 Matter 66/300 Energy 350/350 System Corruption 66% Temperature Cool (27) Movement Treading (215) Ox1 Location -2/Testing Parts ------- > --- POWER (3) -------- Quantum Reactor > --- PROPULSION (6) --- Experimental Biometal Heavy Treads > --- UTILITY (12) ----- Huge Storage Unit Enhanced Optical Array Advanced Signal Interpreter Experimental Core Analyzer Quantum Capacitor > --- WEAPON (2) ------- Compact HERF Cannon > --- INVENTORY (25) --- Flexi-carbon Leg Advanced Power Amplifier Advanced Heat Sink Improved Trap Scanner Precision Energy Filter Experimental ECM Suite Layered Medium Armor Plating Advanced Focal Shield Advanced Thermal Shield Experimental Thermal Defense Suite EM Shield Advanced Force Field Advanced Component Analysis Suite Advanced Dynamic Insulation System Compact HERF Cannon Peak State ------------ > --- POWER ------------ Micro Antimatter Reactor Micro Antimatter Reactor Graviton Reactor > --- PROPULSION ------- Experimental Biometal Heavy Treads Centrium Wheel Centrium Wheel > --- UTILITY ---------- Advanced Heat Sink Experimental Cooling System Huge Storage Unit Enhanced Optical Array Advanced Signal Interpreter Experimental Core Analyzer Quantum Capacitor SHELL Armor Advanced Dynamic Insulation System > --- WEAPON ----------- Enhanced Gamma Rifle Enhanced Quantum Rifle > --- INVENTORY -------- Light Antimatter Reactor Quantum Reactor Flexi-carbon Leg Advanced Power Amplifier Advanced Heat Sink Advanced Heat Sink Improved Trap Scanner Advanced Sensor Array Precision Energy Filter Quantum Capacitor Improved Transmission Jammer Experimental ECM Suite Advanced Focal Shield Advanced Thermal Shield Experimental Thermal Defense Suite EM Shield Advanced Force Field Advanced Component Analysis Suite Compact HERF Cannon Compact HERF Cannon Fusion Bomb Launcher [Rating: 182] Favorites ----------- Power Neutrino Core Engine Improved Deuterium Engine Power Core Neutrino Core Reactor Micro Antimatter Reactor Propulsion Wheel Treads Heavy Treads Leg Myomer Leg Wheel Wheel Utility Hacking Suite Device Improved Sensor Array Storage Huge Storage Unit Processor Enhanced Optical Array Hackware Hacking Suite Protection Hardened Heavy Armor Plating Weapon Enhanced Nova Cannon Energy Gun Beam Rifle Energy Cannon Enhanced Nova Cannon Ballistic Gun Assault Rifle Launcher Heavy Rocket Launcher Build | -11 -10 -10 -9 -9 -8 -7 -7 -7 -7 -6 -6 -6 -6 -6 -5 -5 -5 -5 -5 -4 -4 -4 -4 -4 -3 -3 -3 -3 -2 -2 ------- Run | Yrd Mat Min Mat Min Mat Fac Low Low Zio Pro Fac Low Low Dat Pro Fac Upp Upp War Pro Fac Upp Upp Zhi Pro Res Arm Lab Res Tes Slots Evolved 16 | . . . 2 . 2 2 . . . . 2 . . . . 2 . . . . 2 . . . . 2 . . 2 . Power 2 | . . . . . . . . . . . 1 . . . . . . . . . . . . . . 1 . . . . Propulsion 4 | . . . . . . . . . . . . . . . . 2 . . . . 2 . . . . . . . . . Utility 10 | . . . 2 . 2 2 . . . . 1 . . . . . . . . . . . . . . 1 . . 2 . Weapon . | . . . . . . . . . . . . . . . . . . . . . . . . . . . . . . . Parts Attached 220 | 9 1 1 15 7 18 30 2 1 1 . 18 1 2 . 1 27 2 1 5 2 14 3 1 . 1 26 . . 8 23 Power 35 | 1 . 1 1 2 4 2 . . . . 4 . . . . 4 1 . 1 . 2 . . . . 6 . . . 6 Engine 13 | 1 . 1 1 2 3 1 . . . . 4 . . . . . . . . . . . . . . . . . . . Core 9 | . . . . . 1 1 . . . . . . . . . 3 1 . . . 2 . . . . 1 . . . . Reactor 13 | . . . . . . . . . . . . . . . . 1 . . 1 . . . . . . 5 . . . 6 Propulsion 43 | 4 . . 3 1 3 5 . . 1 . . . . . . 6 . 1 . 1 7 . . . 1 6 . . 1 3 Treads 17 | 2 . . 3 . 3 2 . . . . . . . . . 1 . . . . 3 . . . 1 1 . . . 1 Leg 2 | . . . . . . . . . . . . . . . . . . . . . . . . . . 1 . . . 1 Wheel 24 | 2 . . . 1 . 3 . . 1 . . . . . . 5 . 1 . 1 4 . . . . 4 . . 1 1 Hover . | . . . . . . . . . . . . . . . . . . . . . . . . . . . . . . . Flight . | . . . . . . . . . . . . . . . . . . . . . . . . . . . . . . . Utility 100 | 1 1 . 6 2 6 18 1 . . . 11 . 2 . . 14 1 . 4 1 3 3 . . . 13 . . 4 9 Device 54 | . . . 3 1 3 7 . . . . 3 . . . . 12 1 . 2 . 2 2 . . . 9 . . 3 6 Storage 6 | 1 . . 1 . . 2 . . . . . . . . . 1 . . 1 . . . . . . . . . . . Processor 8 | . . . . . 1 3 . . . . 2 . . . . . . . . . . . . . . 1 . . . 1 Hackware 9 | . . . . . . 4 . . . . 2 . . . . . . . 1 . 1 . . . . 1 . . . . Protection 23 | . 1 . 2 1 2 2 1 . . . 4 . 2 . . 1 . . . 1 . 1 . . . 2 . . 1 2 Artifact . | . . . . . . . . . . . . . . . . . . . . . . . . . . . . . . . Weapon 42 | 3 . . 5 2 5 5 1 1 . . 3 1 . . 1 3 . . . . 2 . 1 . . 1 . . 3 5 Energy Gun 11 | 1 . . 3 . 3 . . . . . . . . . . . . . . . . . . . . 1 . . 1 2 Energy Cannon 22 | . . . 1 . 2 5 . 1 . . 3 . . . 1 3 . . . . 2 . . . . . . . 2 2 Ballistic Gun 5 | 2 . . 1 2 . . . . . . . . . . . . . . . . . . . . . . . . . . Ballistic Cannon . | . . . . . . . . . . . . . . . . . . . . . . . . . . . . . . . Launcher 4 | . . . . . . . 1 . . . . 1 . . . . . . . . . . 1 . . . . . . 1 Special Weapon . | . . . . . . . . . . . . . . . . . . . . . . . . . . . . . . . Impact Weapon . | . . . . . . . . . . . . . . . . . . . . . . . . . . . . . . . Slashing Weapon . | . . . . . . . . . . . . . . . . . . . . . . . . . . . . . . . Piercing Weapon . | . . . . . . . . . . . . . . . . . . . . . . . . . . . . . . . Special Melee Weapon . | . . . . . . . . . . . . . . . . . . . . . . . . . . . . . . . Unidentified Prototypes 19 | . . . 1 . 1 1 . . . . . . . . . 2 . . 5 . . . . 1 . 1 1 . . 6 Corrupted Parts 1 | . . . . . . . . . . . . . . . . . . . . . . . . . . . . . . 1 System Corruption 4 | . . . . . . . . . . . . . . . . . . . . . . . . . . . . . . 4 Parts Lost 98 | . 1 . 7 6 10 5 . . . . 6 . 1 . 2 4 . 1 . 4 2 1 . . 2 17 . . 2 27 Power 22 | . 1 . 1 2 2 1 . . . . 2 . . . 1 1 . . . . . . . . . 4 . . . 7 Propulsion 24 | . . . 1 2 1 . . . . . 1 . . . . 3 . 1 . 3 . . . . 1 4 . . . 7 Utility 36 | . . . 3 2 4 3 . . . . 2 . 1 . . . . . . 1 1 1 . . 1 7 . . 2 8 Weapon 16 | . . . 2 . 3 1 . . . . 1 . . . 1 . . . . . 1 . . . . 2 . . . 5 Highest Loss Streak 7 | . 1 . 4 4 5 3 . . . . 3 . 1 . 2 2 . 1 . 3 2 1 . . 1 7 . . 1 7 To Critical Strikes 1 | . . . . . . . . . . . . . . . . . . . . . . . . . . . . . . 1 Average Backups 21 | 1 4 8 12 15 17 22 24 23 23 24 23 24 23 24 23 23 23 24 24 23 24 23 24 24 22 22 25 24 23 21 Power 1 | . . . . . 2 2 1 1 1 1 . . . . . 1 3 3 2 2 2 1 1 1 1 . 1 1 2 2 Propulsion 1 | 1 2 2 2 4 2 2 2 2 2 3 2 2 2 2 2 . . . . . 1 3 3 3 2 1 2 2 2 1 Utility 12 | . 1 4 3 3 5 12 14 15 15 15 14 13 12 13 13 13 14 15 15 15 14 13 14 13 12 12 14 14 14 15 Weapon 6 | . 1 2 5 7 7 6 6 5 5 5 6 9 9 9 8 7 6 6 6 5 5 4 6 6 6 7 7 7 5 3 Tool/Special . | . . . . . . . . . . . . . . . . . . . . . . . . . . . . . . . Unused Backups 46 | . . 1 . . 2 11 . . . . 4 . . . . 7 1 . 2 . 1 1 . . . 2 . . 6 8 Power 9 | . . . . . . 2 . . . . 2 . . . . 3 . . 1 . . . . . . . . . . 1 Propulsion 4 | . . . . . 1 . . . . . . . . . . . 1 . . . . 1 . . . . . . . 1 Utility 21 | . . 1 . . . 7 . . . . 1 . . . . 1 . . 1 . 1 . . . . 2 . . 1 6 Weapon 12 | . . . . . 1 2 . . . . 1 . . . . 3 . . . . . . . . . . . . 5 . Tool/Special . | . . . . . . . . . . . . . . . . . . . . . . . . . . . . . . . Average Slot Usage (%) 90 | . 91 99 94 97 89 99 100 99 95 92 95 93 93 93 87 93 94 92 91 78 74 83 84 73 83 87 95 90 86 73 Engine 4 | . 11 13 11 10 7 2 7 7 7 7 12 13 13 13 7 1 . . . . . . . . . . . . . . Core 2 | . . . . . 1 4 . . . . . . . . . 7 11 11 6 . 1 10 10 10 10 7 . . . . Reactor 1 | . . . . . . . . . . . . . . . . 1 . . 2 5 4 . . . . 4 14 14 13 11 Treads 7 | . 28 28 21 13 17 11 . . . . . . . . . 2 . . . . 5 15 15 15 15 7 4 4 4 3 Wheel 9 | . . . . 8 . 3 15 15 10 7 8 13 13 13 13 19 23 21 23 13 9 . . . . 8 14 14 13 8 Device 14 | . . . 6 21 20 13 14 15 15 14 20 13 12 12 13 11 10 11 10 11 11 14 15 15 15 18 23 19 18 16 Storage 6 | . 14 14 11 11 9 7 7 7 7 7 6 6 6 6 6 5 5 5 5 5 5 5 5 5 5 4 4 4 4 4 Processor 10 | . . . . . 6 16 15 15 15 15 13 13 13 13 13 11 11 11 11 11 10 10 10 10 10 9 9 9 8 11 Hackware 10 | . . . . . . 19 15 15 15 15 17 13 13 13 13 11 11 11 11 11 8 5 5 5 5 8 9 9 8 2 Protection 5 | . 8 14 21 10 8 2 7 7 7 7 1 6 6 7 6 5 5 5 5 5 5 10 10 10 9 3 . . 2 3 Energy Gun 1 | . . . 2 19 6 . . . . . . . . . . . . . . . . . . . . . . . . 3 Energy Cannon 9 | . . . 1 . 11 14 14 14 15 14 13 12 13 13 6 9 6 6 7 11 9 10 7 . 8 8 9 9 7 3 Ballistic Gun 1 | . 28 28 17 2 . . . . . . . . . . . . . . . . . . . . . . . . . . Peak Build Rating 182 | 6 7 8 15 21 33 49 46 45 50 50 63 60 61 61 61 86 87 86 102 107 137 128 129 127 127 144 142 133 160 182 Average Rating 72 | 5 6 7 11 17 29 43 43 42 47 50 57 59 60 61 57 79 81 81 89 103 118 123 123 112 124 133 141 133 153 162 On Entrance 72 | . 6 7 8 15 21 33 43 46 43 50 50 60 60 61 61 56 86 87 81 102 101 122 126 124 127 127 142 133 133 147 Avg Prop Armor Cover (%) 8 | . . . . . . 10 . . . . . . . . . 4 . . . . 14 . . . . 12 15 16 11 9 Naked Turns . | . . . . . . . . . . . . . . . . . . . . . . . . . . . . . . . Heaviest Build 178 | 12 13 15 57 56 77 120 120 115 121 121 140 140 153 146 139 158 158 157 165 165 166 151 149 151 149 164 160 158 177 178 Greatest Support 210 | 40 40 40 40 40 44 50 20 20 28 28 28 20 20 20 20 46 46 46 46 46 210 210 210 210 210 210 42 42 42 85 Greatest Overweight (x) 11 | . . . 1 2 2 11 5 5 5 4 6 6 7 7 6 4 3 4 3 10 5 . . . . 8 3 3 4 9 Average Overweight (x) 3 | . . . . 1 1 2 5 5 4 4 4 6 6 6 6 3 3 3 3 3 1 . . . . 2 3 3 3 4 Largest Inventory Capacity 25 | 8 8 8 20 20 20 25 25 25 25 25 25 25 25 25 25 25 25 25 25 25 25 25 25 25 25 25 25 25 25 25 Average Capacity 23 | 6 8 8 17 20 20 24 25 25 25 25 25 25 25 25 25 25 25 25 25 25 25 25 25 25 25 25 25 25 25 25 Most Carried 25 | 3 8 8 17 17 20 25 25 25 25 25 25 25 25 25 25 25 25 25 25 25 25 25 25 25 25 25 25 24 25 25 Average Carried 22 | 2 4 8 12 15 17 22 24 24 24 25 24 25 24 25 24 24 24 25 24 24 24 24 25 24 23 22 24 24 24 22 Final Capacity 25 | 8 8 8 20 20 20 25 25 25 25 25 25 25 25 25 25 25 25 25 25 25 25 25 25 25 25 25 25 25 25 25 Final Carried 25 | 3 8 8 15 15 20 25 25 24 25 25 25 25 25 25 25 24 25 25 25 23 25 25 25 25 24 25 24 24 25 15 Class Distribution -------------------- 56% | Hacker-Skirmisher 11% | Scientist-Skirmisher 10% | Mutant 7% | Scavenger-Mutant 6% | Scavenger-Skirmisher 6% | Hacker-Mutant Dominant Class ---------------- Mutant | -10/Materials Mutant | -10/Mines Scavenger-Mutant | -9/Materials Scavenger-Mutant | -9/Mines Mutant | -8/Materials Hacker-Skirmisher | -7/Factory Hacker-Skirmisher | -7/Lower Caves Hacker-Skirmisher | -7/Lower Caves Hacker-Skirmisher | -7/Zion Hacker-Skirmisher | -6/Proximity Caves Hacker-Skirmisher | -6/Factory Scientist-Skirmisher | -6/Lower Caves Scientist-Skirmisher | -6/Lower Caves Scientist-Skirmisher | -6/Data Miner Scientist-Skirmisher | -5/Proximity Caves Hacker-Skirmisher | -5/Factory Scientist-Skirmisher | -5/Upper Caves Scientist-Skirmisher | -5/Upper Caves Hacker-Skirmisher | -5/Warlord Hacker-Skirmisher | -4/Proximity Caves Hacker-Skirmisher | -4/Factory Hacker-Skirmisher | -4/Upper Caves Hacker-Skirmisher | -4/Upper Caves Hacker-Mutant | -4/Zhirov Hacker-Skirmisher | -3/Proximity Caves Hacker-Skirmisher | -3/Research Hacker-Skirmisher | -3/Armory Hacker-Skirmisher | -3/Lab Hacker-Skirmisher | -2/Research Scavenger-Skirmisher | -2/Testing Resources | -11 -10 -10 -9 -9 -8 -7 -7 -7 -7 -6 -6 -6 -6 -6 -5 -5 -5 -5 -5 -4 -4 -4 -4 -4 -3 -3 -3 -3 -2 -2 ----------- Run | Yrd Mat Min Mat Min Mat Fac Low Low Zio Pro Fac Low Low Dat Pro Fac Upp Upp War Pro Fac Upp Upp Zhi Pro Res Arm Lab Res Tes Matter Collected 6984 | 184 210 79 320 207 171 722 176 106 10 228 653 99 25 . 99 512 381 33 . 245 532 100 238 . 262 449 . . 263 680 Remotely . | . . . . . . . . . . . . . . . . . . . . . . . . . . . . . . . Salvage Created 13676 | . 257 94 495 164 1098 1290 290 99 . 262 946 135 543 . 146 1240 535 49 . 332 1076 438 168 . 244 1252 . . 494 2029 Parts 638 | . 14 6 40 4 62 65 12 6 . 14 39 3 5 . 3 74 20 8 . 8 61 9 6 . 16 44 . . 28 91 Haulers Intercepted 5 | . . . 1 . 2 . . . . . 1 . . . . . . . . . . . . . . . . . . 1 Recyclers Shooed 3 | . . . 1 . 1 . . . . . . . . . . 1 . . . . . . . . . . . . . . Parts Field Recycled . | . . . . . . . . . . . . . . . . . . . . . . . . . . . . . . . Retrieved Matter . | . . . . . . . . . . . . . . . . . . . . . . . . . . . . . . . Parts Self-Destructed 78 | . . . . . . . 6 5 . 13 . 2 4 . 2 . 3 7 . 8 . 9 5 . 14 . . . . . Prevented . | . . . . . . . . . . . . . . . . . . . . . . . . . . . . . . . Parts Restored . | . . . . . . . . . . . . . . . . . . . . . . . . . . . . . . . Kills | -11 -10 -10 -9 -9 -8 -7 -7 -7 -7 -6 -6 -6 -6 -6 -5 -5 -5 -5 -5 -4 -4 -4 -4 -4 -3 -3 -3 -3 -2 -2 ------- Run | Yrd Mat Min Mat Min Mat Fac Low Low Zio Pro Fac Low Low Dat Pro Fac Upp Upp War Pro Fac Upp Upp Zhi Pro Res Arm Lab Res Tes Combat Hostiles Destroyed 256 | . 9 2 13 10 21 21 8 5 . 17 14 1 3 . 7 17 12 4 . 4 18 5 5 . 9 18 . . 6 27 Melee 1 | . . . . . . . . . . . . . . . . . . . . . . . . . . . . . . 1 Guns 58 | . 9 2 11 10 11 . . . . . . . . . . . . . . . . . . . . 4 . . . 11 Cannons 123 | . . . 2 . 10 21 1 2 . 5 11 1 3 . 1 15 2 . . 3 16 4 2 . 3 13 . . 4 4 AOE 52 | . . . . . . . 7 3 . 12 1 . . . 6 . 9 4 . . . . 3 . 5 . . . . 2 Classes Destroyed 23 | . 2 . 4 1 2 4 1 2 . 1 . . . . . . 1 . . . 1 . . . . . . . . 4 Worker 10 | . . . . . . 4 . . . . . . . . . . . . . . 3 . . . . . . . 1 2 Builder 6 | . . . 1 . . . . . . . 1 . . . . 1 . . . . 1 . . . . . . . . 2 Tunneler 5 | . . . . . . 1 . . . . 2 . . . . 1 . . . . . . . . . . . . 1 . Hauler 5 | . . . 1 . 2 . . . . . 1 . . . . . . . . . . . . . . . . . . 1 Recycler 3 | . . . . . 1 1 . . . . . . . . . 1 . . . . . . . . . . . . . . Minesweeper 4 | . . . . . . . . . . . . . . . . . 1 . . 2 . . . . 1 . . . . . Operator 2 | . . . 1 . 1 . . . . . . . . . . . . . . . . . . . . . . . . . Drone 6 | . . . . . . . . . . 2 . . . . 2 . . . . . . . . . 2 . . . . . Watcher 2 | . . . . . . 1 . . . . 1 . . . . . . . . . . . . . . . . . . . Swarmer 55 | . 5 . 7 . 6 . 3 . . 7 . . . . . . 8 4 . . 4 . . . 4 . . . 1 6 Grunt 77 | . 4 2 2 2 8 10 4 3 . 7 5 . 2 . 5 4 2 . . 2 . 3 4 . . 3 . . . 5 Brawler 4 | . . . . . . . . 1 . . . . 1 . . . 1 . . . . . . . . . . . . 1 Duelist 3 | . . . . . 2 1 . . . . . . . . . . . . . . . . . . . . . . . . Researcher 1 | . . . . . . . . . . . . . . . . . . . . . . . . . . . . . . 1 Sentry 22 | . . . 4 . 5 1 . . . . 3 1 . . . 3 1 . . . 2 . . . . 1 . . 1 . Specialist 3 | . . . . . . . . . . . . . . . . . . . . . . . . . . . . . . 3 Hunter 18 | . . . . . . . . 1 . . . . . . . 1 . . . 2 2 2 . . . 5 . . 2 3 Programmer 56 | . . . . . . 9 1 . . 1 6 . . . . 9 . . . . 9 . 1 . 3 9 . . 2 6 Q-Series 1 | . . . . . . . . . . . . . . . . . . . . . . . . . . . . . . 1 Behemoth 1 | . . . . . . . . . . . . . . . . . . . . . 1 . . . . . . . . . Striker 1 | . . . . . . . . . . . . . . . . . . . . . . . . . . . . . . 1 Protovariant P 1 | . . . . . . . . . . . . . . . . . . . . . . . . . . . . . . 1 Decomposer 7 | . . . . . . . 2 . . . . 3 . . . . . 1 . . . . 1 . . . . . . . Packrat 6 | . . . . . . . . . . . . . 5 . . . 1 . . . . . . . . . . . . . Samaritan 6 | . . . . . . . 2 . . . . . . . . . 3 . . . . 1 . . . . . . . . Assembled 8 | . . . . 8 . . . . . . . . . . . . . . . . . . . . . . . . . . Best Kill Streak 7 | . 3 2 5 3 4 5 7 4 . 6 4 1 3 . 5 5 5 4 . 2 4 3 4 . 4 4 . . 3 6 Combat Bots Only 7 | . 3 2 4 3 4 3 7 4 . 6 3 1 3 . 5 5 5 4 . 2 4 3 4 . 4 4 . . 2 5 Max Kills in Single Turn 3 | . 2 1 2 1 2 2 3 2 . 2 2 1 1 . 2 1 3 3 . 1 1 1 1 . 2 1 . . 1 2 Gunslinging 1 | . 1 . 1 . 1 . . . . . . . . . . . . . . . . . . . . . . . . . Exploded 3 | . . . . . . . 3 2 . 2 1 . . . 2 . 3 3 . . . . 1 . 2 . . . . 1 Melee 1 | . . . . . . . . . . . . . . . . . . . . . . . . . . . . . . 1 Uniques/NPCs Destroyed . | . . . . . . . . . . . . . . . . . . . . . . . . . . . . . . . Combat | -11 -10 -10 -9 -9 -8 -7 -7 -7 -7 -6 -6 -6 -6 -6 -5 -5 -5 -5 -5 -4 -4 -4 -4 -4 -3 -3 -3 -3 -2 -2 -------- Run | Yrd Mat Min Mat Min Mat Fac Low Low Zio Pro Fac Low Low Dat Pro Fac Upp Upp War Pro Fac Upp Upp Zhi Pro Res Arm Lab Res Tes Hostile Shots Fired 2034 | . 56 13 113 52 123 120 5 2 . 45 131 24 40 . 24 82 26 9 . 74 150 82 20 . 27 335 3 . 77 401 Missed 579 | . 24 2 30 11 35 42 1 1 . 23 49 13 16 . 6 24 15 3 . 26 40 18 6 . 7 97 1 . 11 78 Hits 1455 | . 32 11 83 41 88 78 4 1 . 22 82 11 24 . 18 58 11 6 . 48 110 64 14 . 20 238 2 . 66 323 Melee 20 | . . . . 5 3 2 . 1 . . . . 1 . . . 1 . . . . . . . . . . . . 7 Projectile 1435 | . 32 11 83 36 85 76 4 . . 22 82 11 23 . 18 58 10 6 . 48 110 64 14 . 20 238 2 . 66 316 AOE 1 | . . . . . . . . . . . . . . . . . . . . . . . . . . . 1 . . . Critical Strikes 82 | . . . 1 1 3 3 1 . . . 1 . 1 . 3 6 . . . 4 2 6 1 . 3 20 . . 2 24 Part Disruptions 9 | . . . . . . 3 . . . . 1 . . . . . . . . . . . . . . 2 . . . 3 Damage Taken 25420 | . 298 130 860 619 1257 1121 64 . . 401 1080 62 336 . 390 1181 179 95 . 866 1677 817 203 . 411 3978 39 . 1107 8249 Core 1888 | . 37 9 100 112 156 148 . . . 76 72 17 20 . 59 62 15 . . 90 115 11 . . . 278 . . 115 396 Absorbed by Shields 268 | . . . . . . . . . . . . . . . . . . . . . . . . . . 177 39 . 52 . Reduced by Siege Mode 833 | . . . . . . . . . . . . . . . . . . . . . 67 55 11 . 6 548 . . 5 141 Redirected to Shielding 45 | . 7 2 22 14 . . . . . . . . . . . . . . . . . . . . . . . . . . Ignored by Resistances 2053 | . . . . . . . . . . . . . . . . . . . . . 284 327 87 . 51 564 . . 334 406 Regen/Repaired (Parts) 3157 | . . . . . . . . . . . . . . . . . . . 317 . . . . . . . . . . 2840 Core Remaining (%) 76 | 100 . 81 . 47 71 . . . . 68 . . . . 80 . . . . 83 . . . . 89 . . 72 . . Volleys Fired 1117 | . 22 6 45 30 67 85 11 10 . 27 117 7 16 . 15 62 52 3 . 34 78 19 18 . 23 109 8 . 41 212 Largest 2 | . 2 2 2 2 2 2 2 2 . 2 2 2 2 . 2 2 2 1 . 2 2 2 2 . 2 2 1 . 1 2 Hottest 240 | . 40 40 112 112 120 150 110 170 . 145 175 175 175 . 175 240 240 120 . 240 240 180 180 . 180 180 90 . 120 188 Shots Fired 1672 | . 44 12 90 60 134 153 16 13 . 35 172 12 32 . 18 102 57 3 . 61 130 38 19 . 36 182 8 . 41 204 Gun 393 | . 44 12 77 60 80 . . . . . . . . . . . . . . . . . . . . 22 . . . 98 Cannon 1184 | . . . 13 . 54 153 11 9 . 16 172 11 32 . 6 102 42 1 . 61 130 38 7 . 24 160 8 . 41 93 Launcher 95 | . . . . . . . 5 4 . 19 . 1 . . 12 . 15 2 . . . . 12 . 12 . . . . 13 Special . | . . . . . . . . . . . . . . . . . . . . . . . . . . . . . . . Kinetic 132 | . 44 12 55 21 . . . . . . . . . . . . . . . . . . . . . . . . . . Thermal 1366 | . . . 35 39 134 153 11 9 . 16 172 11 32 . 6 102 42 1 . 61 130 38 7 . 24 182 8 . 29 124 Explosive 95 | . . . . . . . 5 4 . 19 . 1 . . 12 . 15 2 . . . . 12 . 12 . . . . 13 Electromagnetic 79 | . . . . . . . . . . . . . . . . . . . . . . . . . . . . . 12 67 Robot Hit Streak 47 | . 4 7 14 7 11 35 8 3 . 6 7 5 8 . 2 17 5 3 . 7 19 18 20 . 8 47 . . 9 20 Robot Miss Streak 4 | . 4 2 3 2 3 3 1 3 . 2 2 1 2 . 3 3 3 . . 4 4 1 3 . 3 4 . . 2 4 Penetration Max . | . . . . . . . . . . . . . . . . . . . . . . . . . . . . . . . Secondary Targets 11 | . 4 . 2 2 3 . . . . . . . . . . . . . . . . . . . . . . . . . Max Gunslinging Chain 1 | . 1 . 1 1 1 . . . . . . . . . . . . . . . . . . . . . . . . . Capacitor 220 | . . . . . . . . . . . . . . . . . . . . . . . . . . . . . 38 182 Shots Hit Robots 940 | . 21 9 58 37 90 100 11 5 . 15 56 7 23 . 8 51 27 1 . 36 66 28 8 . 21 116 . . 14 132 Core Hits 478 | . 12 4 22 21 42 41 17 10 . 30 23 3 11 . 15 25 25 5 . 9 25 13 14 . 14 33 . . 8 56 Critical Kills 9 | . . . . . . . . . . . 3 . . . . 1 1 . . 2 1 . . . 1 . . . . . Critical Parts Destroyed . | . . . . . . . . . . . . . . . . . . . . . . . . . . . . . . . Critical Strikes 16 | . . . 2 1 4 . . . . . 3 . . . . 1 1 . . 2 1 . . . 1 . . . . . Burn 7 | . . . 2 1 4 . . . . . . . . . . . . . . . . . . . . . . . . . Meltdown 9 | . . . . . . . . . . . 3 . . . . 1 1 . . 2 1 . . . 1 . . . . . Melee Attacks . | . . . . . . . . . . . . . . . . . . . . . . . . . . . . . . . Impact . | . . . . . . . . . . . . . . . . . . . . . . . . . . . . . . . Slashing . | . . . . . . . . . . . . . . . . . . . . . . . . . . . . . . . Piercing . | . . . . . . . . . . . . . . . . . . . . . . . . . . . . . . . Sneak Attacks . | . . . . . . . . . . . . . . . . . . . . . . . . . . . . . . . Combat Hostiles . | . . . . . . . . . . . . . . . . . . . . . . . . . . . . . . . Follow-up Attacks . | . . . . . . . . . . . . . . . . . . . . . . . . . . . . . . . Damage Inflicted 38376 | . 268 128 1006 608 1746 2766 916 559 . 1947 2209 243 741 . 813 2402 2466 301 . 1515 2943 1000 1267 . 1377 4574 . . 660 5921 Guns 5642 | . 268 128 781 608 785 . . . . . . . . . . . . . . . . . . . . 513 . . . 2559 Cannons 24013 | . . . 225 . 961 2766 191 78 . 230 1792 218 741 . 95 2344 1074 45 . 1515 2943 1000 112 . 633 4061 . . 638 2351 Explosions 8548 | . . . . . . . 725 481 . 1717 417 25 . . 718 57 1392 256 . . . . 1155 . 744 . . . . 861 Melee . | . . . . . . . . . . . . . . . . . . . . . . . . . . . . . . . Ramming 173 | . . . . . . . . . . . . . . . . 1 . . . . . . . . . . . . 22 150 Kinetic 1117 | . 268 128 508 213 . . . . . . . . . . . . . . . . . . . . . . . . . . Thermal 26959 | . . . 498 395 1746 2766 191 78 . 230 2209 218 741 . 95 2344 1074 45 . 1515 2943 1000 112 . 633 4574 . . 199 3353 Explosive 8131 | . . . . . . . 725 481 . 1717 . 25 . . 718 57 1392 256 . . . . 1155 . 744 . . . . 861 Electromagnetic 1996 | . . . . . . . . . . . . . . . . . . . . . . . . . . . . . 439 1557 Impact . | . . . . . . . . . . . . . . . . . . . . . . . . . . . . . . . Slashing . | . . . . . . . . . . . . . . . . . . . . . . . . . . . . . . . Piercing . | . . . . . . . . . . . . . . . . . . . . . . . . . . . . . . . Highest Corruption 66 | . . . . 9 . 2 . . . . 2 . . . . 3 . . . . 6 6 1 1 4 38 38 38 4 66 Average Corruption 10 | . . . . 8 . 1 . . . . 1 . . . . 1 . . . . 3 4 1 1 3 31 38 38 2 28 Corruption Purged 19 | . . . . . . 4 . . . . 2 . . . . 4 . . . . 4 5 . . . . . . . . Corruption Blocked . | . . . . . . . . . . . . . . . . . . . . . . . . . . . . . . . Effects 232 | . . . . 21 . 9 . . . . . . . . . 8 . . . . 31 12 . 2 11 44 5 1 3 85 Message Errors 47 | . . . . 1 . 2 . . . . . . . . . . . . . . 6 4 . . 7 5 4 . 2 16 Matter Fused 47 | . . . . 8 . 2 . . . . . . . . . 3 . . . . 4 3 . . 2 10 1 1 1 12 Heat Flow Errors 27 | . . . . 3 . . . . . . . . . . . 2 . . . . 5 . . 1 . 8 . . . 8 Energy Discharges 25 | . . . . 2 . 3 . . . . . . . . . 1 . . . . 4 1 . . 2 2 . . . 10 Parts Rejected 7 | . . . . . . 1 . . . . . . . . . . . . . . . . . . . 2 . . . 4 Parts Fused 2 | . . . . . . . . . . . . . . . . . . . . . . . . . . 1 . . . 1 Data Loss (minor) 34 | . . . . 3 . . . . . . . . . . . 1 . . . . 7 1 . 1 . 8 . . . 13 Data Loss (major) 6 | . . . . . . . . . . . . . . . . . . . . . . 1 . . . 3 . . . 2 Misfires 11 | . . . . 2 . . . . . . . . . . . 1 . . . . 3 2 . . . 1 . . . 2 Alerts 4 | . . . . . . . . . . . . . . . . . . . . . 2 . . . . 1 . . . 1 Misdirections 6 | . . . . . . . . . . . . . . . . . . . . . . . . . . 1 . . . 5 Weapon Failures 16 | . . . . 2 . 1 . . . . . . . . . . . . . . . . . . . 2 . . . 11 Overload Shots 5 | . . . . . . 4 . 1 . . . . . . . . . . . . . . . . . . . . . . Overflow Damage 1651 | . . . 2 . 17 71 68 . . 121 96 48 67 . 3 234 204 43 . 110 112 . 91 . 102 157 . . 16 89 Projectiles 1148 | . . . 2 . 17 71 . . . . 54 48 67 . 3 207 187 29 . 110 112 . 34 . 29 157 . . 16 5 Explosions 503 | . . . . . . . 68 . . 121 42 . . . . 27 17 14 . . . . 57 . 73 . . . . 84 Melee . | . . . . . . . . . . . . . . . . . . . . . . . . . . . . . . . Knockbacks 3 | . . . . . . . . . . . . . . . . . . . . . . . . . . . . . 1 2 Impact 3 | . . . . . . . . . . . . . . . . . . . . . . . . . . . . . 1 2 Kinetic . | . . . . . . . . . . . . . . . . . . . . . . . . . . . . . . . Secondary . | . . . . . . . . . . . . . . . . . . . . . . . . . . . . . . . Self-Inflicted Damage 222 | . . . . . . . . . . 15 . . . . 38 112 . . . . . . . . . . . . 11 46 Shots 7 | . . . . . . . . . . 1 . . . . 2 1 . . . . . . . . . . . . . 3 Rammed 20 | . . . . . . . . . . . . . . . . 1 . . . . . . . . . . . . 1 18 Targets Rammed 21 | . . . . . . . . . . . . . . . . 1 . . . . . . . . . . . . 1 19 Kicked . | . . . . . . . . . . . . . . . . . . . . . . . . . . . . . . . Crushed 1 | . . . . . . . . . . . . . . . . . . . . . . . . . . . . . . 1 Highest Temperature 454 | . 8 3 32 203 186 147 . 27 . 27 279 138 295 . 102 454 320 30 . 252 354 18 . 133 . 233 56 . 303 346 Average Temperature 86 | . 3 3 11 105 51 29 . 8 . 10 67 53 111 . 30 124 68 22 . 72 105 11 . 98 . 102 22 . 94 132 Received Heat Transfer 3453 | . 72 75 249 99 558 402 9 . . 111 336 . 138 . 127 144 . . . 115 27 226 66 . . 186 . . 18 495 Effects 9 | . . . . . . . . . . . . . . . . 2 . . . 1 1 . . . . . . . . 5 Shutdowns 1 | . . . . . . . . . . . . . . . . 1 . . . . . . . . . . . . . . Energy Bleed 2 | . . . . . . . . . . . . . . . . 1 . . . 1 . . . . . . . . . . Interference 6 | . . . . . . . . . . . . . . . . . . . . . 1 . . . . . . . . 5 Siege Activations 28 | . . . . . . . . . . . . . . . . . . . . . 4 2 2 . 1 6 . . 4 9 Total Turns 479 | . . . . . . . . . . . . . . . . . . . . . 49 40 23 . 7 167 . . 20 173 Longest Duration 102 | . . . . . . . . . . . . . . . . . . . . . 19 29 15 . 7 102 . . 10 61 Martial Activations . | . . . . . . . . . . . . . . . . . . . . . . . . . . . . . . . Shielding Activations . | . . . . . . . . . . . . . . . . . . . . . . . . . . . . . . . Robots Disrupted . | . . . . . . . . . . . . . . . . . . . . . . . . . . . . . . . Combat Hostiles . | . . . . . . . . . . . . . . . . . . . . . . . . . . . . . . . Robots Corrupted 11 | . . . . . . . . . . . . . . . . . . . . . . . . . . . . . 2 9 Combat Hostiles 11 | . . . . . . . . . . . . . . . . . . . . . . . . . . . . . 2 9 Parts Fried 26 | . . . . . . . . . . . . . . . . . 1 . . . . . . . . . . . 5 20 Impact Corruptions 2 | . . . . . . . . . . . . . . . . . . . . . . . . . . . . . . 2 Robots Melted 13 | . . . . . . . . . . . 3 . . . . 2 1 . . 2 2 1 . . 1 1 . . . . Combat Hostiles 11 | . . . . . . . . . . . 2 . . . . 2 1 . . 1 2 1 . . 1 1 . . . . Parts Melted 76 | . . . 3 1 5 7 . . . 2 6 . 2 . . 9 1 . . 4 5 6 . . 6 17 . . . 2 Heat Transferred 31163 | . . . 1184 1073 3762 3989 298 150 . 374 2463 298 968 . 137 2145 925 37 . 1332 2479 1073 111 . 592 4468 . . 148 3157 Parts Sabotaged . | . . . . . . . . . . . . . . . . . . . . . . . . . . . . . . . Parts Stolen 1 | . . . . . . . . 1 . . . . . . . . . . . . . . . . . . . . . . Parts Stripped . | . . . . . . . . . . . . . . . . . . . . . . . . . . . . . . . Power Chain Reactions . | . . . . . . . . . . . . . . . . . . . . . . . . . . . . . . . Alert | -11 -10 -10 -9 -9 -8 -7 -7 -7 -7 -6 -6 -6 -6 -6 -5 -5 -5 -5 -5 -4 -4 -4 -4 -4 -3 -3 -3 -3 -2 -2 ------- Run | Yrd Mat Min Mat Min Mat Fac Low Low Zio Pro Fac Low Low Dat Pro Fac Upp Upp War Pro Fac Upp Upp Zhi Pro Res Arm Lab Res Tes Maximum Alert Level 2 | . . . . . . 1 . . . . 2 . . . . 1 . . . . 1 . . . . . . . . 2 Low Security (%) 85 | 100 100 100 100 100 100 86 . . . . 71 . . . . 96 . . . . 68 . . . . 100 100 . 100 34 Level 1 13 | . . . . . . 13 . . . . 22 . . . . 3 . . . . 31 . . . . . . . . 53 Level 2 1 | . . . . . . . . . . . 6 . . . . . . . . . . . . . . . . . . 11 Level 3 . | . . . . . . . . . . . . . . . . . . . . . . . . . . . . . . . Level 4 . | . . . . . . . . . . . . . . . . . . . . . . . . . . . . . . . Level 5 . | . . . . . . . . . . . . . . . . . . . . . . . . . . . . . . . High Security . | . . . . . . . . . . . . . . . . . . . . . . . . . . . . . . . Max Security . | . . . . . . . . . . . . . . . . . . . . . . . . . . . . . . . Peak Influence 536 | . 110 61 107 50 117 273 . . . . 487 . . . . 207 . . . . 282 . . . . 183 51 . 112 536 Initial 487 | . . 21 . 31 . 33 . . . . 487 . . . . 150 . . . . 3 . . . . 150 41 . . 52 Average 80 | . 33 5 38 3 60 74 . . . . 117 . . . . 61 . . . . 104 . . . . 81 34 . 23 211 Influence Increases 8472 | . 226 50 374 50 618 729 190 120 . 340 1087 20 70 . 120 781 265 90 . 100 666 120 120 . 185 703 16 . 244 1188 Destroy 0b10 Robot/C 4860 | . 180 40 260 40 420 420 160 100 . 300 280 20 60 . 100 340 240 80 . 80 360 100 100 . 140 360 . . 120 560 Destroy 0b10 Robot/NC 215 | . . . 15 . 20 35 . . . 10 25 . . . 10 15 5 . . 10 20 . . . 15 . . . 10 25 Destroy Leader 1072 | . 40 10 62 10 104 142 30 20 . 30 104 . 10 . 10 90 20 10 . 10 100 20 20 . 30 80 . . 30 90 Successful Hack 186 | . 6 . 6 . 21 43 . . . . 25 . . . . 28 . . . . 33 . . . . . . . 12 12 Select Force Hacks 30 | . . . . . 30 . . . . . . . . . . . . . . . . . . . . . . . . . Disable Machine 405 | . . . 15 . . 75 . . . . 105 . . . . 30 . . . . 45 . . . . 15 . . . 120 Destroy Structure 819 | . . . 1 . 8 14 . . . . 83 . . . . 128 . . . . 108 . . . . 98 16 . 72 291 Advance Influence 750 | . . . . . . . . . . . 450 . . . . 150 . . . . . . . . . 150 . . . . Lose Combat Pursuer 135 | . . . 15 . 15 . . . . . 15 . . . . . . . . . . . . . . . . . . 90 Influence Decreases 7992 | . 172 104 291 133 543 682 312 120 . 281 894 272 70 . 120 578 418 110 30 94 399 393 120 . 185 624 78 17 150 802 Entered New Map 607 | . . 33 . 52 . 42 46 . . . 22 94 . . . . 76 10 30 . 3 102 . . . . 38 17 . 42 Time Decay 6128 | . 162 71 221 81 488 420 266 120 . 281 596 178 60 . 100 538 342 100 . 84 376 281 120 . 165 482 40 . 130 426 Search Patrol Dispatched 100 | . . . . . . . . . . . 100 . . . . . . . . . . . . . . . . . . . Lost Part 798 | . 10 . 70 . 55 50 . . . . 51 . 10 . 20 40 . . . 10 20 10 . . 20 142 . . 20 270 Lost Ally 20 | . . . . . . 20 . . . . . . . . . . . . . . . . . . . . . . . . Purge Threat 339 | . . . . . . 150 . . . . 125 . . . . . . . . . . . . . . . . . . 64 Squads Dispatched 60 | . 1 . . . 4 12 . . . . 12 . . . . 8 . . . . 8 . . . . 5 . . 2 8 Investigation 11 | . 1 . . . 2 3 . . . . 2 . . . . 2 . . . . 1 . . . . . . . . . Extermination 32 | . . . . . . 8 . . . . 6 . . . . 5 . . . . 4 . . . . 4 . . 2 3 Reinforcement 9 | . . . . . 2 1 . . . . 1 . . . . 1 . . . . 1 . . . . 1 . . . 2 Assault 2 | . . . . . . . . . . . . . . . . . . . . . 2 . . . . . . . . . Garrison 6 | . . . . . . . . . . . 3 . . . . . . . . . . . . . . . . . . 3 Intercept . | . . . . . . . . . . . . . . . . . . . . . . . . . . . . . . . Searches Triggered 1 | . . . . . . . . . . . 1 . . . . . . . . . . . . . . . . . . . Data Miner Redirects 1 | . . . . . . . . . . . . . . . . . . . . . 1 . . . . . . . . . Construction Impeded 2 | . . . . . . . . . . . . . . . . 1 . . . . 1 . . . . . . . . . Haulers Reinforced . | . . . . . . . . . . . . . . . . . . . . . . . . . . . . . . . Active Scanning Responses . | . . . . . . . . . . . . . . . . . . . . . . . . . . . . . . . Cargo Convoy Interrupts 1 | . . . . . . . . . . . . . . . . . . . . . 1 . . . . . . . . . Stealth | -11 -10 -10 -9 -9 -8 -7 -7 -7 -7 -6 -6 -6 -6 -6 -5 -5 -5 -5 -5 -4 -4 -4 -4 -4 -3 -3 -3 -3 -2 -2 --------- Run | Yrd Mat Min Mat Min Mat Fac Low Low Zio Pro Fac Low Low Dat Pro Fac Upp Upp War Pro Fac Upp Upp Zhi Pro Res Arm Lab Res Tes Distress Signals 17 | . . . 1 1 4 1 . . . 2 1 . . . . . . . . . 3 . 1 . . . . . 1 2 Communications Jammed 18 | . . . . . . . . . . . . . . . . . . . . . . . . . . 17 . . . 1 Distress Signals 18 | . . . . . . . . . . . . . . . . . . . . . . . . . . 17 . . . 1 Times Spotted 345 | . 17 2 20 12 38 27 8 5 . 17 18 1 4 . 7 17 12 8 . 4 30 5 5 . 9 19 2 . 13 45 Peak Tracking Total 8 | . 4 2 4 3 5 3 4 4 . 6 4 1 3 . 5 4 4 4 . 2 4 3 4 . 4 5 3 . 7 8 Tactical Retreats 9 | . . . 1 3 1 . . . . . 1 . . . . . . . . . . . . . . . . . . 3 Traps | -11 -10 -10 -9 -9 -8 -7 -7 -7 -7 -6 -6 -6 -6 -6 -5 -5 -5 -5 -5 -4 -4 -4 -4 -4 -3 -3 -3 -3 -2 -2 ------- Run | Yrd Mat Min Mat Min Mat Fac Low Low Zio Pro Fac Low Low Dat Pro Fac Upp Upp War Pro Fac Upp Upp Zhi Pro Res Arm Lab Res Tes Traps Triggered 7 | . 1 . 1 . 1 1 . . . . . . . . . 1 . . . . 2 . . . . . . . . . Indirectly . | . . . . . . . . . . . . . . . . . . . . . . . . . . . . . . . Trap Hack Attempts . | . . . . . . . . . . . . . . . . . . . . . . . . . . . . . . . Triggered . | . . . . . . . . . . . . . . . . . . . . . . . . . . . . . . . Disarmed . | . . . . . . . . . . . . . . . . . . . . . . . . . . . . . . . Reprogrammed . | . . . . . . . . . . . . . . . . . . . . . . . . . . . . . . . Reused . | . . . . . . . . . . . . . . . . . . . . . . . . . . . . . . . Traps Extracted . | . . . . . . . . . . . . . . . . . . . . . . . . . . . . . . . Installed . | . . . . . . . . . . . . . . . . . . . . . . . . . . . . . . . Triggered . | . . . . . . . . . . . . . . . . . . . . . . . . . . . . . . . Machines | -11 -10 -10 -9 -9 -8 -7 -7 -7 -7 -6 -6 -6 -6 -6 -5 -5 -5 -5 -5 -4 -4 -4 -4 -4 -3 -3 -3 -3 -2 -2 ---------- Run | Yrd Mat Min Mat Min Mat Fac Low Low Zio Pro Fac Low Low Dat Pro Fac Upp Upp War Pro Fac Upp Upp Zhi Pro Res Arm Lab Res Tes Machines Disabled 31 | . . . 1 . . 5 1 . . 2 7 . . . . 2 . . . . 3 . . . . 1 . . . 9 Max in Single Turn 6 | . . . 1 . . 1 1 . . 1 6 . . . . 1 . . . . 1 . . . . 1 . . . 4 Garrison Access 5 | . . . . . . 1 . . . . . . . . . 1 . . . . 2 . . . . 1 . . . . Machines Repaired . | . . . . . . . . . . . . . . . . . . . . . . . . . . . . . . . Machines Dismantled . | . . . . . . . . . . . . . . . . . . . . . . . . . . . . . . . Machines Sabotaged . | . . . . . . . . . . . . . . . . . . . . . . . . . . . . . . . Overloaded Fab Kills . | . . . . . . . . . . . . . . . . . . . . . . . . . . . . . . . Hacking | -11 -10 -10 -9 -9 -8 -7 -7 -7 -7 -6 -6 -6 -6 -6 -5 -5 -5 -5 -5 -4 -4 -4 -4 -4 -3 -3 -3 -3 -2 -2 --------- Run | Yrd Mat Min Mat Min Mat Fac Low Low Zio Pro Fac Low Low Dat Pro Fac Upp Upp War Pro Fac Upp Upp Zhi Pro Res Arm Lab Res Tes Machines Accessed 85 | . 1 1 4 . 7 12 . . . . 12 . . 4 . 13 . . 1 . 6 1 . 7 . 7 1 . 3 5 Terminals 45 | . 1 1 3 . 5 8 . . . . 6 . . . . 7 . . . . 2 . . . . 4 1 . 3 4 Fabricators 9 | . . . . . . 3 . . . . 3 . . . . 2 . . . . 1 . . . . . . . . . Repair Stations 1 | . . . . . . . . . . . . . . . . . . . . . 1 . . . . . . . . . Recycling Units 3 | . . . . . 1 . . . . . . . . . . 1 . . . . . . . . . 1 . . . . Scanalyzers 8 | . . . 1 . 1 . . . . . 2 . . . . 2 . . . . 1 . . . . 1 . . . . Garrison Access 6 | . . . . . . 1 . . . . 1 . . . . 1 . . . . 1 . . . . 1 . . . 1 Total Hacks 252 | . 5 2 16 . 16 25 . . . . 35 . . 34 . 20 . . 1 . 11 1 . 46 . 21 1 . 8 10 Successful 169 | . 2 . 5 . 10 17 . . . . 23 . . 34 . 12 . . 1 . 6 1 . 46 . 7 . . 2 3 Failed 81 | . 3 2 10 . 5 8 . . . . 12 . . . . 8 . . . . 5 . . . . 14 1 . 6 7 Catastrophic 16 | . 1 . 1 . . 2 . . . . . . . . . 1 . . . . 1 . . . . 5 1 . 2 2 Database Lockouts 2 | . . . 1 . 1 . . . . . . . . . . . . . . . . . . . . . . . . . Manual 103 | . 5 2 11 . 9 18 . . . . 19 . . . . 10 . . 1 . 5 . . . . 16 1 . 3 3 Terminals 115 | . 5 2 11 . 10 16 . . . . 20 . . . . 12 . . . . 5 . . . . 17 1 . 8 8 Fabricators 21 | . . . . . . 8 . . . . 7 . . . . 4 . . . . 2 . . . . . . . . . Repair Stations 2 | . . . . . . . . . . . . . . . . . . . . . 2 . . . . . . . . . Recycling Units 3 | . . . . . 1 . . . . . . . . . . 1 . . . . . . . . . 1 . . . . Scanalyzers 21 | . . . 5 . 5 . . . . . 6 . . . . 2 . . . . 1 . . . . 2 . . . . Garrison Access 8 | . . . . . . 1 . . . . 2 . . . . 1 . . . . 1 . . . . 1 . . . 2 Terminal Hacks 113 | . 1 . 2 . 3 5 . . . . 11 . . 34 . 4 . . 1 . . 1 . 46 . 2 . . 1 2 Record 45 | . . . . . . . . . . . . . . 11 . . . . . . . . . 34 . . . . . . Part Schematic 22 | . . . . . 1 1 . . . . 1 . . 13 . 1 . . . . . . . 4 . . . . 1 . Robot Schematic 7 | . . . . . . . . . . . . . . 7 . . . . . . . . . . . . . . . . Robot Analysis 10 | . 1 . 2 . . . . . . . 3 . . . . . . . . . . . . 4 . . . . . . Prototype ID Bank 7 | . . . . . . . . . . . . . . 3 . . . . . . . . . 4 . . . . . . Open Door 3 | . . . . . . . . . . . . . . . . . . . 1 . . 1 . . . . . . . 1 Level Access Points 1 | . . . . . 1 . . . . . . . . . . . . . . . . . . . . . . . . . Branch Access Points 5 | . . . . . 1 1 . . . . 1 . . . . 1 . . . . . . . . . 1 . . . . Terminal Index 3 | . . . . . . 1 . . . . 1 . . . . . . . . . . . . . . 1 . . . . Fabricator Index 3 | . . . . . . 1 . . . . 1 . . . . 1 . . . . . . . . . . . . . . Alert Level 2 | . . . . . . . . . . . 1 . . . . 1 . . . . . . . . . . . . . . Unreport Threat 4 | . . . . . . 1 . . . . 2 . . . . . . . . . . . . . . . . . . 1 Recall Reinforcements 1 | . . . . . . . . . . . 1 . . . . . . . . . . . . . . . . . . . Fabricator Hacks 11 | . . . . . . 4 . . . . 4 . . . . 1 . . . . 2 . . . . . . . . . Load Schematic 7 | . . . . . . 3 . . . . 3 . . . . . . . . . 1 . . . . . . . . . Build 4 | . . . . . . 1 . . . . 1 . . . . 1 . . . . 1 . . . . . . . . . Repair Station Hacks 1 | . . . . . . . . . . . . . . . . . . . . . 1 . . . . . . . . . Scan Component 1 | . . . . . . . . . . . . . . . . . . . . . 1 . . . . . . . . . Recycling Unit Hacks 1 | . . . . . . . . . . . . . . . . 1 . . . . . . . . . . . . . . Retrieve Components 1 | . . . . . . . . . . . . . . . . 1 . . . . . . . . . . . . . . Scanalyzer 17 | . . . 3 . 4 . . . . . 5 . . . . 2 . . . . 1 . . . . 2 . . . . Retrieve Study 17 | . . . 3 . 4 . . . . . 5 . . . . 2 . . . . 1 . . . . 2 . . . . Garrison Access Hacks 4 | . . . . . . 1 . . . . . . . . . 1 . . . . 1 . . . . 1 . . . . Seal Access 4 | . . . . . . 1 . . . . . . . . . 1 . . . . 1 . . . . 1 . . . . Unauthorized Hacks 22 | . 1 . . . 3 7 . . . . 3 . . . . 3 . . . . 1 . . . . 2 . . 1 1 Terminals 17 | . 1 . . . 2 5 . . . . 2 . . . . 2 . . . . 1 . . . . 2 . . 1 1 Assimilate 2 | . . . . . . 2 . . . . . . . . . . . . . . . . . . . . . . . . Botnet 15 | . 1 . . . 2 3 . . . . 2 . . . . 2 . . . . 1 . . . . 2 . . 1 1 Fabricators 4 | . . . . . . 2 . . . . 1 . . . . 1 . . . . . . . . . . . . . . Recompile 4 | . . . . . . 2 . . . . 1 . . . . 1 . . . . . . . . . . . . . . Repair Stations . | . . . . . . . . . . . . . . . . . . . . . . . . . . . . . . . Recycling Units 1 | . . . . . 1 . . . . . . . . . . . . . . . . . . . . . . . . . Tunnel 1 | . . . . . 1 . . . . . . . . . . . . . . . . . . . . . . . . . Scanalyzers . | . . . . . . . . . . . . . . . . . . . . . . . . . . . . . . . Garrison Access . | . . . . . . . . . . . . . . . . . . . . . . . . . . . . . . . Data Cores Recovered 1 | . . . 1 . . . . . . . . . . . . . . . . . . . . . . . . . . . Used 1 | . . . 1 . . . . . . . . . . . . . . . . . . . . . . . . . . . Hacking Detections 53 | . 1 1 3 . 6 9 . . . . 9 . . . . 8 . . . . 3 . . . . 5 1 . 3 4 Full Trace Events 3 | . . . . . . 1 . . . . 1 . . . . 1 . . . . . . . . . . . . . . Feedback Events . | . . . . . . . . . . . . . . . . . . . . . . . . . . . . . . . Feedback Blocked . | . . . . . . . . . . . . . . . . . . . . . . . . . . . . . . . Robot Schematics Acquired 10 | . . . . . . . . . 2 . . . . 7 . . . . . . . . . . . . . . . 1 Robots Built . | . . . . . . . . . . . . . . . . . . . . . . . . . . . . . . . Authchips . | . . . . . . . . . . . . . . . . . . . . . . . . . . . . . . . Time . | . . . . . . . . . . . . . . . . . . . . . . . . . . . . . . . Total Robot Build Rating . | . . . . . . . . . . . . . . . . . . . . . . . . . . . . . . . Part Schematics Acquired 40 | . . . . . 1 1 . . 15 . 1 . . 13 . 1 . . . . . . . 4 . . . . 1 3 Parts Built 6 | . . . . . . 1 . . . . 2 . . . . 2 . . . . 1 . . . . . . . . . Authchips 2 | . . . . . . . . . . . 1 . . . . . . . . . 1 . . . . . . . . . Time 334 | . . . . . . 42 . . . . 95 . . . . 69 . . . . 128 . . . . . . . . . Total Part Build Rating 40 | . . . . . . 4 . . . . 10 . . . . 18 . . . . 8 . . . . . . . . . Part Studies Acquired 17 | . . . 3 . 4 . . . . . 5 . . . . 2 . . . . 1 . . . . 2 . . . . Parts Repaired . | . . . . . . . . . . . . . . . . . . . . . . . . . . . . . . . Time . | . . . . . . . . . . . . . . . . . . . . . . . . . . . . . . . Parts Recycled . | . . . . . . . . . . . . . . . . . . . . . . . . . . . . . . . Recycled Matter . | . . . . . . . . . . . . . . . . . . . . . . . . . . . . . . . Retrieved Matter . | . . . . . . . . . . . . . . . . . . . . . . . . . . . . . . . Retrieved Components 9 | . . . . . . . . . . . . . . . . 9 . . . . . . . . . . . . . . Parts Scanalyzed . | . . . . . . . . . . . . . . . . . . . . . . . . . . . . . . . Part Schematics Acquired . | . . . . . . . . . . . . . . . . . . . . . . . . . . . . . . . Parts Damaged . | . . . . . . . . . . . . . . . . . . . . . . . . . . . . . . . Bothacking | -11 -10 -10 -9 -9 -8 -7 -7 -7 -7 -6 -6 -6 -6 -6 -5 -5 -5 -5 -5 -4 -4 -4 -4 -4 -3 -3 -3 -3 -2 -2 ------------ Run | Yrd Mat Min Mat Min Mat Fac Low Low Zio Pro Fac Low Low Dat Pro Fac Upp Upp War Pro Fac Upp Upp Zhi Pro Res Arm Lab Res Tes Used RIF Installer . | . . . . . . . . . . . . . . . . . . . . . . . . . . . . . . . Robots Hacked . | . . . . . . . . . . . . . . . . . . . . . . . . . . . . . . . Non-combat . | . . . . . . . . . . . . . . . . . . . . . . . . . . . . . . . Combat . | . . . . . . . . . . . . . . . . . . . . . . . . . . . . . . . Robot Hacks Applied . | . . . . . . . . . . . . . . . . . . . . . . . . . . . . . . . Relay Couplers Released 5 | . . . . . . 3 . . . . . . . . . . . . . . 2 . . . . . . . . . Machine Destruction 2 | . . . . . . . . . . . . . . . . . . . . . 2 . . . . . . . . . Programmers 3 | . . . . . . 3 . . . . . . . . . . . . . . . . . . . . . . . . Fabnet Peak Effective % . | . . . . . . . . . . . . . . . . . . . . . . . . . . . . . . . Robots Rewired . | . . . . . . . . . . . . . . . . . . . . . . . . . . . . . . . Allies Hacked 2 | . . . . . . 2 . . . . . . . . . . . . . . . . . . . . . . . . Hacks Repelled . | . . . . . . . . . . . . . . . . . . . . . . . . . . . . . . . Allies | -11 -10 -10 -9 -9 -8 -7 -7 -7 -7 -6 -6 -6 -6 -6 -5 -5 -5 -5 -5 -4 -4 -4 -4 -4 -3 -3 -3 -3 -2 -2 -------- Run | Yrd Mat Min Mat Min Mat Fac Low Low Zio Pro Fac Low Low Dat Pro Fac Upp Upp War Pro Fac Upp Upp Zhi Pro Res Arm Lab Res Tes Total Allies 3 | . . 1 . . . 2 . . . . . . . . . . . . . . . . . . . . . . . . Largest Group 1 | . . 1 . . . 1 . . . . . . . . . . . . . . . . . . . . . . . . Highest-Rated Group 31 | . . 31 . . . 26 . . . . . . . . . . . . . . . . . . . . . . . . Highest-Rated Ally 31 | . . 31 . . . 26 . . . . . . . . . . . . . . . . . . . . . . . . Total Orders 2 | . . . . . . 2 . . . . . . . . . . . . . . . . . . . . . . . . STAY 1 | . . . . . . 1 . . . . . . . . . . . . . . . . . . . . . . . . FOLLOW 1 | . . . . . . 1 . . . . . . . . . . . . . . . . . . . . . . . . Ally Attacks . | . . . . . . . . . . . . . . . . . . . . . . . . . . . . . . . Total Damage . | . . . . . . . . . . . . . . . . . . . . . . . . . . . . . . . Kills . | . . . . . . . . . . . . . . . . . . . . . . . . . . . . . . . Allies Corrupted . | . . . . . . . . . . . . . . . . . . . . . . . . . . . . . . . Allies Melted . | . . . . . . . . . . . . . . . . . . . . . . . . . . . . . . . Intel | -11 -10 -10 -9 -9 -8 -7 -7 -7 -7 -6 -6 -6 -6 -6 -5 -5 -5 -5 -5 -4 -4 -4 -4 -4 -3 -3 -3 -3 -2 -2 ------- Run | Yrd Mat Min Mat Min Mat Fac Low Low Zio Pro Fac Low Low Dat Pro Fac Upp Upp War Pro Fac Upp Upp Zhi Pro Res Arm Lab Res Tes Active Infowar (turns) 28158 | . . . . . 1514 4065 621 890 1331 737 2853 932 1005 129 741 2758 768 251 452 910 1973 679 790 250 582 1628 96 11 694 1498 Optics 26593 | . . . . . . 4014 621 890 1331 737 2853 932 1005 129 741 2758 768 251 452 910 1973 679 790 250 582 1628 96 11 694 1498 Sensors 23241 | . . . . . . 3223 613 890 1323 686 2503 918 958 112 734 2578 660 227 449 612 1600 621 763 248 557 1326 96 11 632 901 Traps 9554 | . . . . . 1514 2770 . . . . 2510 . . . . 330 31 . . . 1272 . . . . 446 96 11 472 102 Jamming 1338 | . . . . . . . . . . . . . . . . 13 . . . . . . . . . 680 . . . 645 ECM 71 | . . . . . . . . . . . . . . . . . . . . . . . . . . . . . . 71 Robot Analysis Total 10 | . 1 . 2 . . . . . . . 3 . . . . . . . . . . . . 4 . . . . . . Derelict Logs Recovered 15 | . . 2 . 1 . . 2 2 1 . . 2 2 . . . 1 . . . . 1 1 . . . . . . . Drone Launches . | . . . . . . . . . . . . . . . . . . . . . . . . . . . . . . . Drone Recoveries . | . . . . . . . . . . . . . . . . . . . . . . . . . . . . . . . Exploration | -11 -10 -10 -9 -9 -8 -7 -7 -7 -7 -6 -6 -6 -6 -6 -5 -5 -5 -5 -5 -4 -4 -4 -4 -4 -3 -3 -3 -3 -2 -2 ------------- Run | Yrd Mat Min Mat Min Mat Fac Low Low Zio Pro Fac Low Low Dat Pro Fac Upp Upp War Pro Fac Upp Upp Zhi Pro Res Arm Lab Res Tes Turns Passed 31464 | 64 726 939 629 932 1530 4065 621 890 1331 737 2853 932 1005 129 741 2758 768 251 452 910 1973 679 790 250 582 1628 96 11 694 1498 Spaces Moved 16574 | 36 400 560 216 533 603 1662 397 592 809 407 1361 566 589 77 420 1658 515 192 360 566 1065 383 465 155 310 765 55 9 383 465 Core 1 | 1 . . . . . . . . . . . . . . . . . . . . . . . . . . . . . . Treads 4954 | 26 400 560 216 202 564 1121 . . . . . . . . . . . . . . 301 383 465 155 310 247 . . . 4 Legs . | . . . . . . . . . . . . . . . . . . . . . . . . . . . . . . . Wheels 11619 | 9 . . . 331 39 541 397 592 809 407 1361 566 589 77 420 1658 515 192 360 566 764 . . . . 518 55 9 383 461 Hover . | . . . . . . . . . . . . . . . . . . . . . . . . . . . . . . . Flight . | . . . . . . . . . . . . . . . . . . . . . . . . . . . . . . . Fastest Speed 50 | 50 160 160 160 100 100 140 145 145 145 160 145 160 160 160 160 115 120 120 120 120 103 155 155 155 155 108 130 130 130 130 Average Speed 155 | 139 160 160 203 137 206 212 145 145 153 160 158 160 160 160 160 127 120 122 120 140 134 155 155 155 159 142 130 130 137 166 Slowest Speed 312 | 160 160 160 240 200 305 312 145 145 160 160 160 160 175 175 160 136 120 136 120 240 180 155 155 155 161 240 130 130 148 260 Overloaded Moves . | . . . . . . . . . . . . . . . . . . . . . . . . . . . . . . . Propulsion Burnouts . | . . . . . . . . . . . . . . . . . . . . . . . . . . . . . . . Robots Hopped . | . . . . . . . . . . . . . . . . . . . . . . . . . . . . . . . Potential Cave-ins . | . . . . . . . . . . . . . . . . . . . . . . . . . . . . . . . Cave-ins Triggered . | . . . . . . . . . . . . . . . . . . . . . . . . . . . . . . . Teleports 1 | . . . . . . . . . . . . . . . . . . . . . . . . . . . 1 . . . Exploration Rate (%) 50 | 4 73 99 28 97 63 37 63 75 84 57 37 73 80 73 62 29 58 31 47 65 18 47 56 63 66 17 5 5 12 30 Regions Visited 30 Branch Regions 21 Pre-discovered Areas 7 | . . . . . 1 . . . 1 . . . 1 1 . . . . . . . . . 3 . . . . . . Known Exits Taken 26 | . . . 1 . 1 1 1 1 1 1 1 1 1 1 1 1 1 1 1 1 1 1 1 1 1 1 1 1 1 . Unknown Exits Taken 4 | 1 1 1 . 1 . . . . . . . . . . . . . . . . . . . . . . . . . . Scrap Searched 21 | . . 1 . 1 . . 2 2 4 . . 1 3 . 1 . 1 . . 1 . 1 1 . 2 . . . . . Spaces Dug 206 | . . . . . . 6 . . . . 63 . . . . 29 6 . . 7 25 4 . . . 34 8 . 21 3 Terrain Destroyed 1328 | . . . . . 6 10 78 22 . 141 88 6 8 . 120 76 168 32 . 25 53 9 82 . 99 50 8 . 24 223 Melee . | . . . . . . . . . . . . . . . . . . . . . . . . . . . . . . . Projectile 368 | . . . . . 6 10 . . . . 83 3 8 . 3 45 16 . . 25 53 9 4 . 6 50 8 . 24 15 AOE 960 | . . . . . . . 78 22 . 141 5 3 . . 117 31 152 32 . . . . 78 . 93 . . . . 208 Terrain Rammed . | . . . . . . . . . . . . . . . . . . . . . . . . . . . . . . . Walls Destroyed . | . . . . . . . . . . . . . . . . . . . . . . . . . . . . . . . Machines Disabled . | . . . . . . . . . . . . . . . . . . . . . . . . . . . . . . . Actions | -11 -10 -10 -9 -9 -8 -7 -7 -7 -7 -6 -6 -6 -6 -6 -5 -5 -5 -5 -5 -4 -4 -4 -4 -4 -3 -3 -3 -3 -2 -2 --------- Run | Yrd Mat Min Mat Min Mat Fac Low Low Zio Pro Fac Low Low Dat Pro Fac Upp Upp War Pro Fac Upp Upp Zhi Pro Res Arm Lab Res Tes Total 20638 | 47 442 592 313 667 754 2035 424 609 897 450 1872 579 618 80 470 2210 603 201 379 616 1459 430 512 164 358 1103 72 8 545 1129 Wait 2048 | . 15 24 20 91 34 137 8 3 80 2 303 3 9 . 31 399 20 2 . 4 236 13 23 . 17 141 8 . 82 343 Move 16544 | 35 399 559 215 532 602 1661 396 591 808 406 1360 565 588 76 419 1657 514 191 359 565 1064 382 464 154 309 764 54 8 382 465 Hop . | . . . . . . . . . . . . . . . . . . . . . . . . . . . . . . . Pick Up 178 | 1 5 1 10 4 18 36 1 . 3 . 22 . 1 . 1 18 2 . 2 2 10 5 . 1 2 17 . . 8 8 Fast Attach 94 | 8 1 1 5 2 7 11 1 . 1 . 1 . . . . 9 . 1 5 1 7 . . 4 . 15 . . 3 11 Attach 107 | . . . 7 4 10 11 . 1 . . 10 . 1 . 1 7 . . . 1 6 3 . . 2 16 1 . 3 23 Detach 21 | 2 . . . . 1 1 . . . . . . . . . 2 . . . . 1 . . . . 2 . . 2 10 Swap 336 | 1 . . 7 4 3 57 5 3 1 15 43 4 3 4 3 27 13 4 5 7 38 6 7 1 5 29 . . 13 28 Drop 162 | . . 1 4 . 12 36 2 . 4 . 16 . . . . 28 2 . 8 2 11 2 . 4 . 10 1 . 10 9 Fire 1117 | . 22 6 45 30 67 85 11 10 . 27 117 7 16 . 15 62 52 3 . 34 78 19 18 . 23 109 8 . 41 212 Melee . | . . . . . . . . . . . . . . . . . . . . . . . . . . . . . . . Ram 3 | . . . . . . . . . . . . . . . . 1 . . . . . . . . . . . . 1 1 Kick . | . . . . . . . . . . . . . . . . . . . . . . . . . . . . . . . Crush 19 | . . . . . . . . . . . . . . . . . . . . . . . . . . . . . . 19 Escape Stasis 8 | . . . . . . . . . . . . . . . . . . . . . 8 . . . . . . . . . Rewire 1 | . . . . . . . . 1 . . . . . . . . . . . . . . . . . . . . . . Trap . | . . . . . . . . . . . . . . . . . . . . . . . . . . . . . . . Miscellaneous . | . . . . . . . . . . . . . . . . . . . . . . . . . . . . . . . Route ------- -11/Scrapyard -10/Materials (discovered 3 exits: *Mat x2 / *Min) -10/Mines (discovered 4 exits: *Mat x2 / [*Exi] / [*Sub]) -9/Materials -9/Mines (discovered 2 exits: *Mat x2) -8/Materials (discovered 3 exits: *Fac x3) -7/Factory (discovered 6 exits: *Fac x2 / *Sto x2 / *Low x2) -7/Lower Caves -7/Lower Caves (discovered 2 exits: *Fac / *Zio) -7/Zion -6/Proximity Caves -6/Factory (discovered 3 exits: *Fac / *Low x2) -6/Lower Caves -6/Lower Caves (discovered 2 exits: *Fac / *Dat) -6/Data Miner -5/Proximity Caves -5/Factory (discovered 3 exits: *Fac / *Upp x2) -5/Upper Caves -5/Upper Caves -5/Warlord -4/Proximity Caves -4/Factory -4/Upper Caves -4/Upper Caves -4/Zhirov -3/Proximity Caves -3/Research (discovered 4 exits: Res / *Arm / Qua x2) -3/Armory -3/Lab -2/Research -2/Testing History --------- Turn | Location | Event 17 | -11/Scrapyard | Discovered new exit (range 16) 65 | -11/Scrapyard | Entered Materials 125 | -10/Materials | Discovered new exit (range 16) 313 | -10/Materials | Build established: Mutant 669 | -10/Materials | Discovered new exit (range 8) 783 | -10/Materials | Discovered new exit (range 6) 791 | -10/Materials | Entered Mines 804 | -10/Mines | Met a Derelict bent on vengeance 865 | -10/Mines | Discovered new exit (range 4) 894 | -10/Mines | Discovered new exit (range 6) 914 | -10/Mines | Discovered new exit (range 10) 994 | -10/Mines | Received a Mining Laser from a helpful Derelict 1169 | -10/Mines | Found a Scrap Suit stashed away for nefarious purposes 1326 | -10/Mines | Deemed a non-threat by the Exiles lab entrance 1326 | -10/Mines | Discovered new exit (range 5) 1414 | -10/Mines | Learned Materials terminal intel 1730 | -10/Mines | Entered Materials 1730 | -9/Materials | Evolved 2 slots: Utility x2 1731 | -9/Materials | Identified exit to Mines 1732 | -9/Materials | Loaded intel: 12 terminal locations 2125 | -9/Materials | Central database locked down 2302 | -9/Materials | Lost 4 parts (1p1n1u1w) 2359 | -9/Materials | Entered Mines 2379 | -9/Mines | Learned location of 1 exit from Lower Caves 2409 | -9/Mines | Build established: Scavenger-Mutant 2559 | -9/Mines | A weapon hastily lodged in a ceiling crevice suddenly fell to the ground 2622 | -9/Mines | Discovered new exit (range 5) 2681 | -9/Mines | Assembled infested the area 2846 | -9/Mines | Lost 4 parts (2p2u) 2890 | -9/Mines | Found a hidden stash of uninstalled traps 2917 | -9/Mines | Core integrity fell below 50% 3012 | -9/Mines | Discovered new exit (range 7) 3291 | -9/Mines | Entered Materials 3291 | -8/Materials | Evolved 2 slots: Utility x2 3660 | -8/Materials | Lost 5 parts (1p1n3u) 4081 | -8/Materials | Build established: Mutant 4451 | -8/Materials | Identified exit to Factory 4735 | -8/Materials | Central database locked down 4821 | -8/Materials | Entered Factory 4821 | -7/Factory | Evolved 2 slots: Utility x2 4922 | -7/Factory | Discovered new exit (range 6) 5493 | -7/Factory | Identified exit to Factory 5545 | -7/Factory | Build established: Hacker-Skirmisher 6253 | -7/Factory | Discovered exit to Factory (range 11) 6307 | -7/Factory | Discovered new exit (range 19) 6371 | -7/Factory | Identified exit to Storage 7693 | -7/Factory | Identified exit to Lower Caves 8068 | -7/Factory | Lost 3 parts (1p2u) 8595 | -7/Factory | Fabricated Hvy. Rocket Launcher (x1) 8886 | -7/Factory | Entered Lower Caves 8887 | -7/Lower Caves | Identified exit to Lower Caves 8947 | -7/Lower Caves | Destroyed 7 combat bots 9007 | -7/Lower Caves | Entered a destroyed Warlord outpost 9009 | -7/Lower Caves | Learned 8 Factory zone layouts 9394 | -7/Lower Caves | Acquired the password to a Derelict Tinkerer's latest research 9507 | -7/Lower Caves | Entered another Lower Caves area 9698 | -7/Lower Caves | Discovered exit to Factory (range 10) 9760 | -7/Lower Caves | Learned Factory security intel 10194 | -7/Lower Caves | Learned Factory non-interactive machine intel 10378 | -7/Lower Caves | Discovered new exit (range 10) 10395 | -7/Lower Caves | Identified exit to Zion 10397 | -7/Lower Caves | Entered Zion 10542 | -7/Zion | Discovered new exit (range 11) 10850 | -7/Zion | Learned location of Quarantine (-3) 11064 | -7/Zion | Learned Factory emergency access door positions 11345 | -7/Zion | Met Imprinter 11726 | -7/Zion | Identified exit to Proximity Caves 11728 | -7/Zion | Entered Proximity Caves 11869 | -6/Proximity Caves | Spotter reported a threat 11905 | -6/Proximity Caves | Spotter reported a threat 11978 | -6/Proximity Caves | Spotter reported a threat 12002 | -6/Proximity Caves | Attracted the attention of an 0b10 base 12349 | -6/Proximity Caves | Discovered exit to Factory (range 6) 12465 | -6/Proximity Caves | Entered Factory 12465 | -6/Factory | Evolved 2 slots: Power x1, Utility x1 12469 | -6/Factory | Loaded intel: 198 non-interactive machine locations 12815 | -6/Factory | Search patrols dispatched 13012 | -6/Factory | Discovered new exit (range 10) 13070 | -6/Factory | Identified exit to Factory 13122 | -6/Factory | Identified exit to Lower Caves 13305 | -6/Factory | Fabricated Phase Cannon (x2) 14889 | -6/Factory | Garrison activated, responded to threat 14919 | -6/Factory | Lost 3 parts (2p1w) 15318 | -6/Factory | Entered Lower Caves 15428 | -6/Lower Caves | Build established: Scientist-Skirmisher 15593 | -6/Lower Caves | Learned Factory emergency access door positions 15637 | -6/Lower Caves | Learned 8 Factory zone layouts 15822 | -6/Lower Caves | Attracted the attention of an 0b10 checkpoint 16239 | -6/Lower Caves | Discovered new exit (range 7) 16247 | -6/Lower Caves | Identified exit to Lower Caves 16250 | -6/Lower Caves | Entered another Lower Caves area 16292 | -6/Lower Caves | Discovered exit to Factory (range 21) 16339 | -6/Lower Caves | Encountered a Warlord checkpoint 17023 | -6/Lower Caves | Discovered new exit (range 13) 17252 | -6/Lower Caves | Attracted the attention of an 0b10 checkpoint 17253 | -6/Lower Caves | Identified exit to Data Miner 17255 | -6/Lower Caves | Entered Data Miner 17258 | -6/Data Miner | Discovered new exit (range 6) 17279 | -6/Data Miner | Met Data Miner 17316 | -6/Data Miner | Learned location of Section 7 (-2) 17316 | -6/Data Miner | Acquired the access code to Warlord's prototype stash 17345 | -6/Data Miner | Received God Mode back door access code from Data Miner 17382 | -6/Data Miner | Identified exit to Proximity Caves 17384 | -6/Data Miner | Entered Proximity Caves 17387 | -5/Proximity Caves | Spotter reported a threat 18036 | -5/Proximity Caves | Discovered exit to Factory (range 19) 18125 | -5/Proximity Caves | Entered Factory 18125 | -5/Factory | Evolved 2 slots: Propulsion x2 18126 | -5/Factory | Identified exit to Upper Caves 18287 | -5/Factory | Watched by a mysterious "MATRIX" hacker 18416 | -5/Factory | Build established: Scavenger-Skirmisher 18419 | -5/Factory | Discovered exit to Upper Caves (range 6) 18578 | -5/Factory | Fabricated Enh. Nova Cannon? 19358 | -5/Factory | Build established: Hacker-Skirmisher 20345 | -5/Factory | Discovered new exit (range 6) 20350 | -5/Factory | Identified exit to Factory 20758 | -5/Factory | Build established: Scavenger-Skirmisher 20883 | -5/Factory | Entered Upper Caves 21432 | -5/Upper Caves | Identified exit to Upper Caves 21550 | -5/Upper Caves | Build established: Scientist-Skirmisher 21651 | -5/Upper Caves | Entered another Upper Caves area 21876 | -5/Upper Caves | Discovered new exit (range 21) 21900 | -5/Upper Caves | Identified exit to Warlord 21902 | -5/Upper Caves | Entered Warlord 22151 | -5/Warlord | Opened Warlord's prototype stash 22156 | -5/Warlord | Found Prototype Reactor 22156 | -5/Warlord | Identified Vortex Chain Reactor 22161 | -5/Warlord | Found Prototype Device 22161 | -5/Warlord | Identified Exp. Phase Shifter 22167 | -5/Warlord | Found Prototype Hackware 22167 | -5/Warlord | Identified Ghost Barrier 22175 | -5/Warlord | Found Prototype Device 22175 | -5/Warlord | Identified Exp. Focal Shield 22318 | -5/Warlord | Opened side exit 22340 | -5/Warlord | Discovered new exit (range 10) 22350 | -5/Warlord | Identified exit to Proximity Caves 22354 | -5/Warlord | Entered Proximity Caves 22458 | -4/Proximity Caves | Build established: Hacker-Skirmisher 22647 | -4/Proximity Caves | Lost 3 parts (3n) 23244 | -4/Proximity Caves | Discovered exit to Factory (range 11) 23264 | -4/Proximity Caves | Entered Factory 23264 | -4/Factory | Evolved 2 slots: Propulsion x2 23371 | -4/Factory | Discovered new exit (range 5) 23377 | -4/Factory | Identified exit to Upper Caves 23549 | -4/Factory | Incoming investigation squad redirected 24414 | -4/Factory | Spotted B-86 Titan 24422 | -4/Factory | Destroyed B-86 Titan 24488 | -4/Factory | Fabricated Adv. Heavy Treads (x1) 25027 | -4/Factory | Cargo convoy interrupted 25237 | -4/Factory | Entered Upper Caves 25465 | -4/Upper Caves | Encountered a Warlord checkpoint 25582 | -4/Upper Caves | Learned location of 1 exit from Research 25707 | -4/Upper Caves | Discovered new exit (range 19) 25913 | -4/Upper Caves | Identified exit to Upper Caves 25916 | -4/Upper Caves | Entered another Upper Caves area 26119 | -4/Upper Caves | Learned Research interactive machine intel 26638 | -4/Upper Caves | Discovered new exit (range 5) 26702 | -4/Upper Caves | Identified exit to Zhirov 26706 | -4/Upper Caves | Entered Zhirov 26708 | -4/Zhirov | Discovered new exit (range 3) 26735 | -4/Zhirov | Met Zhirov 26763 | -4/Zhirov | Learned location of Testing (-2) 26763 | -4/Zhirov | Learned location of Command (-1) 26796 | -4/Zhirov | Zhirov requested help retrieving the SGEMP Prototype 26823 | -4/Zhirov | Found Alien Artifact 26823 | -4/Zhirov | Identified Integrated Reactor 26823 | -4/Zhirov | Installed Integrated Reactor, increased core energy generation (+10) 26868 | -4/Zhirov | Found Alien Artifact 26953 | -4/Zhirov | Identified exit to Proximity Caves 26956 | -4/Zhirov | Entered Proximity Caves 26959 | -3/Proximity Caves | Spotter reported a threat 27488 | -3/Proximity Caves | Discovered new exit (range 7) 27536 | -3/Proximity Caves | Identified exit to Research 27538 | -3/Proximity Caves | Entered Research 27538 | -3/Research | Evolved 2 slots: Power x1, Utility x1 27539 | -3/Research | Identified exit to Research 27540 | -3/Research | Loaded intel: 45 interactive machine locations 27592 | -3/Research | Identified exit to Armory 27592 | -3/Research | Identified exit to Quarantine 27709 | -3/Research | Found Fusion Bomb Launcher 28390 | -3/Research | System corruption reached 10% 28449 | -3/Research | Lost 7 parts (2p1n4u) 28519 | -3/Research | Lost 3 parts (1p1n1w) 28733 | -3/Research | System corruption reached 30% 28778 | -3/Research | Lost 3 parts (1p1n1w) 28891 | -3/Research | Found Prototype Processor 28891 | -3/Research | Identified Exp. Target Analyzer 28905 | -3/Research | Found Fusion Bomb Launcher 28939 | -3/Research | Found Prototype Device 28956 | -3/Research | Identified Exp. ECM Suite 29038 | -3/Research | Found Prototype Device 29085 | -3/Research | Found Prototype Device 29166 | -3/Research | Entered Armory 29261 | -3/Armory | Identified Transdimensional Reconstructor 29261 | -3/Armory | Warped through subspace to slip node 29261 | -3/Armory | Discovered new exit (range 1) 29261 | -3/Armory | Identified exit to Lab 29262 | -3/Armory | Entered Lab 29262 | -3/Lab | Discovered exit to Research (range 9) 29273 | -3/Lab | Entered Research 29273 | -2/Research | Evolved 2 slots: Utility x2 29277 | -2/Research | Identified Exp. Thermal Defense Suite 29287 | -2/Research | Identified Exp. EM Disruption Field 29398 | -2/Research | Found Quantum Capacitor 29450 | -2/Research | Found Unknown Protection 29450 | -2/Research | Identified Hvy. Reflective Plating 29454 | -2/Research | Found Hvy. Reflective Plating 29861 | -2/Research | Discovered new exit (range 5) 29870 | -2/Research | Identified exit to Testing 29967 | -2/Research | Entered Testing 29976 | -2/Testing | Found Quantum Capacitor 30083 | -2/Testing | Found Prototype Processor 30100 | -2/Testing | Identified Exp. Core Analyzer 30228 | -2/Testing | System corruption reached 10% 30324 | -2/Testing | Scanned by Researcher 30344 | -2/Testing | Found Prototype Protection 30344 | -2/Testing | Identified SHELL Armor 30463 | -2/Testing | Spotted PP-7SZDBLOD4M 30528 | -2/Testing | System corruption reached 30% 30535 | -2/Testing | Lost 3 parts (1p1n1u) 30536 | -2/Testing | Destroyed PP-7SZDBLOD4M 30579 | -2/Testing | Lost 3 parts (2n1u) 30589 | -2/Testing | Found Prototype Energy Gun 30589 | -2/Testing | Identified Enh. Gamma Rifle 30745 | -2/Testing | Garrison activated, responded to threat 30747 | -2/Testing | Spotted Striker 30752 | -2/Testing | Destroyed Striker 31275 | -2/Testing | Lost 7 parts (5p1n1u) 31319 | -2/Testing | Lost 3 parts (1u2w) 31355 | -2/Testing | Spotted Striker 31465 | -2/Testing | Self-destructed Last Messages --------------- 31451_ P-80 Master resets G-73 Enforcer, system corruption cleaned. 31452_ Slammed into G-73 Enforcer. 31452_ M-36 Artificer repairs P-80 Master Imp. Antigrav System. 31453_ The unstable cave ceiling collapses. 31454_ Slammed into G-73 Enforcer. 31455_ K-01 Serf collects debris. 31456_ Slammed into G-73 Enforcer. 31457_ The unstable cave ceiling collapses. 31458_ Slammed into G-73 Enforcer. 31459_ K-01 Serf collects debris. 31460_ Slammed into G-73 Enforcer. 31461_ KE0A:EAXTWXIC3&PSUGHQ NJGDYSD 31462_ The unstable cave ceiling collapses. 31462_ Fusion Bomb Launcher destroyed. 31463_ Slammed into G-73 Enforcer. 31463_ K-01 Serf collects debris. 31465_ SHELL Armor destroyed. 31465_ Adv. Heat Sink destroyed. Map ----- +----------------------------------------------------+ | ?????????????????????????????????????????????????? | | ????????????????????#########????????????????????? | | ????????????????????# #????????????????????? | | ????????????????????# ""#????????????????????? | | ????????????????????# """ ""#????????????????????? | | ????????????????????# """ ""#????????????????????? | | ????????????????????# """ T#??????????????????? | | ????????????????????# ""#?????????????????? ? | | ????????????????????# """ ""#????????????????? | | ????????????????????# """ ""#????????????????"" "" | | ????????????????????# " [ #???????????????""" "" | | ????????????????????# [%=%=#?????????????? """ "" | | ????????????????????# % #?????###/#### | | ????????????????????#######+####### """ "" | | ????????????????????????# """ "" | | ???????????#++#?????????#! """ "" | | ???????????# #??????####%######### | | ??????????? ?????## # | # ######## """ | | ???????????# #????##]! %k # #??????????"" | | ???????????# #??### = [= # #?????????????!! | | ???????????# #??# # ###### #??????????????? | | ???????????# #?## ## # #??????????????? | | ???????????# #?## # # # #??????????????? | | ???????????# #?## ## # ###?????????????? | | ???????????# ##### # p #?????????????? | | ???????????# g@ # #?????????????? | | ???????????# ! #??????????????? | | ???????????###### #### ! #??????????????? | | ????????????????### ## # #??????????????? | | ????????????????# # k ##??????????????? | | ????????????????## # ## #???????????????? | | ?????????????????## ## ###???????????????? | | ?????????????????############ ##????????????????? | | ?????????????????# ## #?????????????????? | | ?????????????????# """ ## #################?? | | ?????????????????# ""T"" # | | ?????????????????# "" "" + | | ?????????????????# # """ """ """ """?? | | ?????????????????# # """ """ ""??????? | | ?????????????????# # """ """ """ ""??? | | ?????????????????# # | | ?????????????????### " " ### """ """ """ ""??? | | ???????????????????#""G""#?# """ """ "???????? | | ???????????????????#######?# """ """ """ ""??? | | ???????????????????????????# | | ???????????????????????????# """ """ """ ""??? | | ???????????????????????????# """ """ "???????? | | ???????????????????????????# """ """ """ ""??? | | ???????????????????????????# | | ???????????????????????????# """ """ """ ""??? | +----------------------------------------------------+ Best States ------------- Heat Dissipation 144 Energy Generation 67 Energy Capacity 745 Matter Stores 300 Matter Capacity 300 Sight Range 22 Robot Scan Range 16 Terrain Scan Density 10 ECM Strength 3 Jamming Range 14 Armor Coverage 1800 Resistance: KI 30 Resistance: TH 30 Resistance: EM 25 Core Shielding 20 Melee Speed Boost 30 Phase Shifting 20 Evasion (%) 50 Targeting Accuracy 8 Core Analysis 8 Recoil Reduction 6 Particle Charging 15 Offensive Hacking 30 Defensive Hacking 20 Authchip Count 3 Item Schematics ----------------- Heat Sink | -8/Materials | Hacked Hvy. Rocket Launcher | -7/Factory | Hacked Spear | -7/Zion | Archive Phase Cannon | -7/Zion | Archive EM Disruption Field | -7/Zion | Archive Lyr. Medium Armor Plating | -7/Zion | Archive Imp. Medium Armor Plating | -7/Zion | Archive Arm. Leg | -7/Zion | Archive Imp. EM Pulse Cannon | -7/Zion | Archive Imp. Weapon Cycler | -7/Zion | Archive Adv. Recoil Stabilizer | -7/Zion | Archive Energy Filter | -7/Zion | Archive Imp. System Restoration Module | -7/Zion | Archive Imp. Deuterium Engine | -7/Zion | Archive Power Sword | -7/Zion | Archive System Restoration Module | -7/Zion | Archive Lgt. Angular Momentum Engine | -7/Zion | Archive HERF Cannon | -6/Factory | Hacked Combat Drone Bay | -6/Data Miner | Free Lgt. Regenerative Plating | -6/Data Miner | Free Imp. Energy Well | -6/Data Miner | Free Cld. Nuclear Pulse Thruster | -6/Data Miner | Free Hvy. Proton Missile Launcher | -6/Data Miner | Free Imp. Gyrokinetic Inverter | -6/Data Miner | Free Imp. Point Defense System | -6/Data Miner | Free Dual-blade Saw | -6/Data Miner | Free Neutrino Core | -6/Data Miner | Free Imp. Linear Gravjet | -6/Data Miner | Free Imp. Fusion Compressor | -6/Data Miner | Free Adv. Recalibrator | -6/Data Miner | Free Adv. Heavy Treads | -6/Data Miner | Free Adv. Cooling System | -5/Factory | Hacked Assault Drone Bay | -4/Zhirov | Free Exp. Heat Sink | -4/Zhirov | Free Exp. Optical Array | -4/Zhirov | Free Imp. Arc Thrower | -4/Zhirov | Free Adv. Heavy Siege Treads | -2/Research | Hacked Exp. Thermal Defense Suite | -2/Testing | Archive Hvy. Tesla Rifle | -2/Testing | Archive Exp. System Shield | -2/Testing | Archive Robot Schematics ------------------ L-41 Fighter | -7/Zion | Archive T-07 Excavator | -7/Zion | Archive B-60 Warrior | -6/Data Miner | Free Y-54 Guardian | -6/Data Miner | Free R-10 Processor | -6/Data Miner | Free M-22 Extractor | -6/Data Miner | Free L-61 Swordsman | -6/Data Miner | Free W-44 Eye | -6/Data Miner | Free C-35 Carver | -6/Data Miner | Free C-57 Dissector | -2/Testing | Archive Fabricated ------------ Hvy. Rocket Launcher | x1 | -7/Factory Phase Cannon | x2 | -6/Factory | Authchip Enh. Nova Cannon | x2 | -5/Factory | Preloaded Adv. Heavy Treads | x1 | -4/Factory | Authchip Repaired ---------- Nothing Studied --------- Particle Cannon | -9/Materials | Hacked Lgt. Treads | -9/Materials | Hacked Wheel | -9/Materials | Hacked Com. Wheel | -8/Materials | Hacked Ion Cannon | -8/Materials | Hacked Lgt. Nuclear Core | -8/Materials | Hacked Hvy. Particle Cannon | -8/Materials | Hacked Phase Cannon | -6/Factory | Hacked Plasma Cannon | -6/Factory | Hacked Hvy. Rocket Launcher | -6/Factory | Hacked Hvy. Plasma Cannon | -6/Factory | Hacked Lgt. Angular Momentum Engine | -6/Factory | Hacked Hvy. Phase Cannon | -5/Factory | Hacked Neutrino Core | -5/Factory | Hacked Centrium Wheel | -4/Factory | Hacked Hvy. Siege Treads | -3/Research | Hacked Adv. Heavy Treads | -3/Research | Hacked Alien Tech Used ----------------- Integrated Reactor Transdimensional Reconstructor Achievements -------------- None Challenges ------------ None Game ------ Seed DisposableDynamicTrap Manual? 0 Play Time 05:03:57 Cumulative 269.7 hours Start 2026.08.17 @ 21:21:08 End 2026.08.18 @ 13:38:39 Sessions 5 Manual Loads 0 Difficulty Rogue Special Mode None Game No. 259 Rogue 205 Adventurer 54 Explorer 0 Win Type - Total 11 Types 7/0/1/1/0/0/0/1/0/1 Lore% 77 Gallery% 65 Achievement% 60 Wizard Run 0 Options --------- Layout 1 ASCII 0 Keyboard 0 Movement Mouse Keybinds 1 Fullscreen 2 Font 32/Tamsyn Map View 50x35 Zoom Use 0% Tactical HUD 1 Map Filters NONE Filters NONE Steam 1 RUN: 2f667405-4cfb-44f8-b0cf-f16f1852f344